fUSD/lending_fUSD_20251110
["ID","MTS","AMOUNT","RATE_DAILY","PERIOD"]
[393545794,1762789847111,-150.15,0.000188,2]
[393545796,1762789847120,-150.15,0.000188,2]
[393545798,1762789847129,-150.15,0.000188,2]
[393545800,1762789847138,-150.15,0.000188,2]
[393545801,1762789847151,-150.15,0.000188,2]
[393545802,1762789847160,-150.15,0.000188,2]
[393545803,1762789847169,-150.15,0.000188,2]
[393545804,1762789847179,-150.15,0.000188,2]
[393545805,1762789847189,-150.15,0.000188,2]
[393545806,1762789847199,-150.15,0.000188,2]
[393545807,1762789847209,-150.15,0.000188,2]
[393545808,1762789847219,-150.15,0.000188,2]
[393545809,1762789847229,-161.8431212,0.000189,2]
[393545810,1762789847239,-300.0,0.00018923,2]
[393545811,1762789847249,-314.50635683,0.00018923,2]
[393545812,1762789847259,-300.0,0.00018923,2]
[393545813,1762789847269,-20488.47034742,0.00018924,2]
[393545814,1762789847292,-269.65003646,0.00018924,2]
[393545815,1762789866244,500.0,0.00017999,2]
[393545816,1762789869538,192.57376292,0.00017999,2]
[393545817,1762789882839,500.0,0.00017999,2]
[393545819,1762789913376,245.68850147,0.00017999,2]
[393545828,1762790013267,508.08613874,0.00030137,120]
[393545830,1762790034007,500.0,0.00017999,2]
[393545831,1762790034266,500.0,0.00017999,2]
[393545832,1762790034511,500.0,0.00017999,2]
[393545833,1762790034752,500.0,0.00017999,2]
[393545834,1762790034988,500.0,0.00017999,2]
[393545835,1762790035250,500.0,0.00017999,2]
[393545836,1762790035457,500.0,0.00017999,2]
[393545837,1762790035724,500.0,0.00017999,2]
[393545838,1762790035943,21.94033916,0.00017999,2]
[393545839,1762790035967,478.05966084,0.00017999,2]
[393545840,1762790036177,500.0,0.00017999,2]
[393545841,1762790036419,500.0,0.00017999,2]
[393545842,1762790036683,500.0,0.00017999,2]
[393545843,1762790036954,292.94158803,0.00017999,2]
[393545845,1762790057619,500.0,0.00017999,2]
[393545846,1762790057864,500.0,0.00017999,2]
[393545847,1762790058228,500.0,0.00017999,2]
[393545848,1762790058468,500.0,0.00017999,2]
[393545849,1762790058712,500.0,0.00017999,2]
[393545850,1762790059081,500.0,0.00017999,2]
[393545851,1762790059342,500.0,0.00017999,2]
[393545852,1762790059586,500.0,0.00017999,2]
[393545853,1762790059848,500.0,0.00017999,2]
[393545854,1762790060114,500.0,0.00017999,2]
[393545855,1762790060363,500.0,0.00017999,2]
[393545856,1762790060642,500.0,0.00017999,2]
[393545857,1762790060892,509.81604037,0.00017999,2]
[393545859,1762790086679,634.70667195,0.00017999,2]
[393545860,1762790090589,413.78133242,0.00017999,2]
[393545861,1762790111634,170.70470639,0.00017999,2]
[393545862,1762790111659,129.29529361,0.00017999,2]
[393545863,1762790148036,500.0,0.00017999,2]
[393545864,1762790148277,500.0,0.00017999,2]
[393545865,1762790148796,500.0,0.00017999,2]
[393545866,1762790149433,307.45218061,0.00017999,2]
[393545867,1762790162706,500.0,0.00017999,2]
[393545868,1762790162970,500.0,0.00017999,2]
[393545869,1762790163218,500.0,0.00017999,2]
[393545870,1762790163454,538.08323017,0.00017999,2]
[393545871,1762790196708,178.1307307,0.00017999,2]
[393545874,1762790338764,188.248435,0.00030136,120]
[393545875,1762790352695,186.72,0.00016712,2]
[393545877,1762790434225,-254.0,0.00018165,2]
[393545996,1762790521551,164.7709259,0.00017999,2]
[393545997,1762790591463,300.0,0.00017999,2]
[393545999,1762790711706,300.0,0.00017999,2]
[393546001,1762790768900,1400.0,0.00017976,2]
[393546002,1762790770754,-2247.85,0.00017976,2]
[393546003,1762790845676,152.41310646,0.00017991,2]
[393546004,1762790874742,-166.66,0.00022886,30]
[393546006,1762790899674,150.0,0.00018275,120]
[393546007,1762790912060,-166.66,0.00023367,30]
[393546008,1762790912107,-166.66,0.00023849,30]
[393546009,1762790937103,793.78,0.00013699,2]
[393546182,1762791016112,4693.65,0.00017774,2]
[393546191,1762791031897,-1200.0,0.00018087,2]
[393546192,1762791031907,-300.0,0.00018087,2]
[393546193,1762791031917,-300.0,0.00018087,2]
[393546194,1762791031927,-5244.19999998,0.00018088,2]
[393546195,1762791031965,-776.15703811,0.00018088,2]
[393546196,1762791031976,-1008.51,0.00018088,2]
[393546197,1762791032032,-1591.65419361,0.00018088,2]
[393546198,1762791032100,-257.87596969,0.00018088,2]
[393546199,1762791032111,-2082.52279861,0.00018088,2]
[393546200,1762791032121,-147.20350541,0.0001809,2]
[393546218,1762791037900,-152.79649459,0.0001809,2]
[393546219,1762791037911,-250.0,0.00018091,2]
[393546220,1762791037923,-195.0,0.00018095,2]
[393546221,1762791037934,-300.0,0.00018097,2]
[393546222,1762791037944,-300.0,0.00018097,2]
[393546223,1762791037955,-300.0,0.00018097,2]
[393546224,1762791037965,-500.0,0.00018101,2]
[393546225,1762791037974,-250.0,0.00018112,2]
[393546226,1762791037985,-195.0,0.00018136,2]
[393546227,1762791037995,-200.0,0.00018141,2]
[393546228,1762791038005,-151.0,0.00018152,2]
[393546229,1762791038015,-456.64228662,0.00018165,2]
[393546230,1762791038196,-151.0,0.00018165,2]
[393546231,1762791038207,-337.05,0.00018165,2]
[393546232,1762791038217,-151.0,0.00018175,2]
[393546233,1762791038227,-250.0,0.00018184,2]
[393546234,1762791038237,-151.0,0.00018205,2]
[393546235,1762791038247,-151.0,0.00018229,2]
[393546236,1762791038262,-685.88,0.00018274,2]
[393546237,1762791038272,-150.0,0.00018275,2]
[393546239,1762791038282,-224.86764211,0.000185,2]
[393546241,1762791038293,-150.0,0.00018514,2]
[393546243,1762791038303,-1501.74490275,0.00018533,2]
[393546244,1762791038316,-4138.55509725,0.00018533,2]
[393546245,1762791038325,-685.88,0.00018548,2]
[393546246,1762791038336,-2000.0,0.000186,2]
[393546247,1762791038346,-6147.71,0.00018648,2]
[393546248,1762791038356,-239.06833913,0.0001865,2]
[393546249,1762791038366,-464.15701881,0.0001865,2]
[393546250,1762791038376,-4203.2,0.00018651,2]
[393546251,1762791038385,-685.88,0.00018822,2]
[393546252,1762791038396,-502.09585084,0.00018873,2]
[393546253,1762791038406,-211.08861885,0.00018873,2]
[393546254,1762791038419,-288.91138115,0.00018873,2]
[393546255,1762791038429,-164.51749938,0.00018873,2]
[393546256,1762791038444,-500.0,0.00018873,2]
[393546257,1762791038454,-160.96776524,0.00018873,2]
[393546258,1762791038463,-500.0,0.00018873,2]
[393546259,1762791038475,-500.0,0.00018873,2]
[393546260,1762791038485,-216.21978476,0.00018883,2]
[393546261,1762791038495,-200.0,0.00018884,2]
[393546262,1762791038506,-151.0,0.00018884,2]
[393546263,1762791038517,-151.0,0.00018884,2]
[393546264,1762791038527,-151.0,0.00018884,2]
[393546265,1762791038538,-151.0,0.00018884,2]
[393546266,1762791038547,-151.0,0.00018884,2]
[393546267,1762791038557,-151.0,0.00018884,2]
[393546268,1762791038566,-151.0,0.00018884,2]
[393546269,1762791038575,-151.0,0.00018884,2]
[393546270,1762791038585,-151.0,0.00018884,2]
[393546271,1762791038594,-151.0,0.00018884,2]
[393546272,1762791038604,-151.0,0.00018884,2]
[393546273,1762791038614,-200.0,0.00018884,2]
[393546274,1762791038624,-200.0,0.00018884,2]
[393546275,1762791038638,-2221.2183549,0.00018889,2]
[393546276,1762791038648,-15110.47117797,0.00018895,2]
[393546277,1762791038665,-1928.80999808,0.00018895,2]
[393546278,1762791038677,-10814.95986496,0.00018895,2]
[393546279,1762791038691,-824.0894058,0.00018895,2]
[393546280,1762791038703,-329.67448229,0.00018895,2]
[393546281,1762791038714,-966.2401757,0.00018895,2]
[393546282,1762791038723,-1466.7440265,0.00018895,2]
[393546289,1762791040090,-342.48171497,0.00018889,2]
[393546290,1762791040101,-1465.6153322,0.00018895,2]
[393546291,1762791040172,-6752.49912987,0.00018895,2]
[393546292,1762791040186,-1045.39609183,0.00018895,2]
[393546293,1762791040197,-277.99927132,0.00018895,2]
[393546294,1762791040207,-54969.430978,0.00018897,2]
[393546295,1762791040216,-300.0,0.00018923,2]
[393546296,1762791040226,-300.0,0.00018923,2]
[393546297,1762791040236,-300.0,0.00018923,2]
[393546298,1762791040245,-299.09536,0.00018924,2]
[393546299,1762791040256,-299.09536,0.00018924,2]
[393546300,1762791040266,-299.09536,0.00018924,2]
[393546301,1762791040277,-299.09535,0.00018924,2]
[393546302,1762791040287,-299.09536,0.00018924,2]
[393546303,1762791040298,-299.09536,0.00018924,2]
[393546304,1762791040313,-9587.94961612,0.00018924,2]
[393546305,1762791040323,-2264.47,0.00018959,2]
[393546306,1762791040333,-1135.31349496,0.00019,2]
[393546307,1762791040343,-4244.7,0.00019075,2]
[393546308,1762791040353,-685.88,0.00019096,2]
[393546309,1762791040363,-151.0,0.00019178,2]
[393546310,1762791040373,-7119.06434752,0.00019321,2]
[393546311,1762791040383,-685.88,0.0001937,2]
[393546312,1762791040393,-500.7971487,0.00019373,2]
[393546313,1762791040403,-500.0,0.00019373,2]
[393546314,1762791040412,-500.0,0.00019373,2]
[393546315,1762791040422,-331.01280997,0.00019373,2]
[393546316,1762791040434,-501.88332508,0.00019373,2]
[393546317,1762791040446,-501.80159397,0.00019373,2]
[393546318,1762791040456,-500.71017401,0.00019373,2]
[393546319,1762791040466,-500.0,0.00019373,2]
[393546320,1762791040475,-500.0,0.00019373,2]
[393546321,1762791040486,-500.0,0.00019373,2]
[393546322,1762791040496,-486.62365432,0.00019373,2]
[393546323,1762791040509,-165.84551596,0.00019373,2]
[393546325,1762791040519,-200.0,0.00019373,2]
[393546327,1762791040529,-501.63441618,0.00019373,2]
[393546329,1762791040539,-500.0,0.00019373,2]
[393546331,1762791040548,-500.0,0.00019373,2]
[393546333,1762791040558,-500.0,0.00019373,2]
[393546335,1762791040567,-500.0,0.00019373,2]
[393546337,1762791040576,-300.0,0.00019395,2]
[393546339,1762791040586,-300.0,0.00019395,2]
[393546341,1762791040595,-300.0,0.00019395,2]
[393546343,1762791040604,-316.98947733,0.00019396,2]
[393546345,1762791040614,-64276.68,0.00019396,2]
[393546347,1762791040624,-500.0,0.00019421,2]
[393546349,1762791040632,-500.0,0.00019421,2]
[393546351,1762791040642,-413.3646757,0.00019431,2]
[393546353,1762791040653,-500.0,0.00019431,2]
[393546355,1762791040663,-330.09805355,0.00019431,2]
[393546357,1762791040673,-500.0,0.00019431,2]
[393546358,1762791040683,-476.0592367,0.00019431,2]
[393546359,1762791040693,-200.0,0.00019432,2]
[393546360,1762791040702,-200.0,0.00019432,2]
[393546361,1762791040711,-216.6,0.00019637,2]
[393546362,1762791040720,-685.88,0.00019644,2]
[393546363,1762791040730,-156.587,0.00019726,2]
[393546364,1762791040739,-420.0,0.00019733,2]
[393546365,1762791040748,-384.0,0.00019733,2]
[393546366,1762791040759,-3372.14,0.0001978,2]
[393546368,1762791040772,-835.09,0.000198,2]
[393546370,1762791040782,-218.06,0.0001983,2]
[393546372,1762791040792,-1680.0,0.0001983,2]
[393546373,1762791040801,-190.37,0.00019831,2]
[393546375,1762791040811,-1000.0,0.00019854,2]
[393546377,1762791040820,-167.81904028,0.00019896,2]
[393546379,1762791040830,-1372.88574058,0.00019896,2]
[393546381,1762791040839,-195.0,0.00019896,2]
[393546383,1762791040849,-195.0,0.00019897,2]
[393546384,1762791040859,-195.0,0.00019897,2]
[393546386,1762791040868,-250.0,0.00019897,2]
[393546388,1762791040878,-300.0,0.00019897,2]
[393546390,1762791040887,-685.88,0.00019918,2]
[393546392,1762791040896,-500.0,0.00019921,2]
[393546394,1762791040905,-790.57977857,0.00019921,2]
[393546396,1762791040915,-1000.0,0.00019921,2]
[393546398,1762791040925,-979.11441728,0.00019921,2]
[393546400,1762791040935,-200.0,0.0001998,2]
[393546402,1762791040945,-200.0,0.0001998,2]
[393546404,1762791040955,-160.0,0.0002,5]
[393546406,1762791040966,-150.0,0.0002,2]
[393546408,1762791040978,-175.71947301,0.0002,2]
[393546410,1762791040988,-400.0,0.00020058,2]
[393546412,1762791040999,-793.78,0.00020187,2]
[393546414,1762791041009,-685.9,0.00020192,2]
[393546416,1762791041019,-162.380719,0.00020274,2]
[393546418,1762791041030,-1596.67579016,0.00020321,5]
[393546420,1762791041040,-239.0828285,0.00020372,2]
[393546422,1762791041051,-313.10268333,0.00020373,2]
[393546424,1762791041062,-500.0,0.00020373,2]
[393546425,1762791041072,-500.0,0.00020373,2]
[393546428,1762791041082,-213.17942912,0.00020373,2]
[393546440,1762791041198,-500.0,0.00020373,2]
[393546442,1762791041209,-500.0,0.00020373,2]
[393546445,1762791041222,-500.0,0.00020373,2]
[393546447,1762791041232,-500.0,0.00020373,2]
[393546448,1762791041242,-500.0,0.00020373,2]
[393546450,1762791041251,-500.0,0.00020373,2]
[393546452,1762791041262,-1168.07525235,0.00020468,2]
[393546454,1762791041272,-200.0,0.00020528,2]
[393546456,1762791041281,-200.0,0.00020528,2]
[393546458,1762791041291,-1000.0,0.00020599,2]
[393546460,1762791041302,-216.6,0.00020671,2]
[393546462,1762791041312,-600.0,0.00020742,2]
[393546465,1762791041323,-168.3888056,0.00020822,2]
[393546466,1762791041333,-300.0,0.00020894,2]
[393546468,1762791041342,-500.0,0.00020921,2]
[393546469,1762791041353,-503.66483378,0.00020921,2]
[393546470,1762791041363,-680.3838446,0.00020921,2]
[393546471,1762791041372,-1000.0,0.00020921,2]
[393546472,1762791041382,-500.0,0.00020921,2]
[393546473,1762791041392,-1000.0,0.00021005,2]
[393546474,1762791041402,-29974.2451048,0.00021033,2]
[393546475,1762791041411,-500.0,0.00021073,2]
[393546476,1762791041420,-500.0,0.00021073,2]
[393546477,1762791041430,-500.0,0.00021073,2]
[393546478,1762791041443,-206.01473497,0.00021073,2]
[393546479,1762791041453,-160.58612939,0.00021073,2]
[393546480,1762791041462,-500.0,0.00021073,2]
[393546481,1762791041472,-167.4343945,0.00021073,2]
[393546482,1762791041482,-500.47868238,0.00021073,2]
[393546483,1762791041491,-500.0,0.00021073,2]
[393546484,1762791041501,-200.0,0.00021076,2]
[393546485,1762791041510,-200.0,0.00021076,2]
[393546487,1762791041521,-200.0,0.0002108,2]
[393546488,1762791041530,-379.94568324,0.00021227,2]
[393546489,1762791041539,-500.0,0.00021227,2]
[393546490,1762791041549,-1000.0,0.00021343,2]
[393546491,1762791041559,-174.61919141,0.0002137,2]
[393546492,1762791041569,-800.0,0.00021427,2]
[393546493,1762791041580,-10730.2545804,0.0002156,2]
[393546494,1762791041591,-7119.06434745,0.0002157,2]
[393546495,1762791041602,-300.0,0.00021617,2]
[393546496,1762791041612,-504.04297182,0.00021621,2]
[393546497,1762791041622,-207.4,0.00021623,2]
[393546498,1762791041632,-200.0,0.00021624,2]
[393546499,1762791041643,-200.0,0.00021624,2]
[393546500,1762791041654,-300.0,0.0002167,2]
[393546501,1762791041664,-300.0,0.00021694,2]
[393546502,1762791041673,-216.6,0.00021704,2]
[393546503,1762791041684,-300.0,0.00021727,2]
[393546504,1762791041693,-300.0,0.00021732,2]
[393546505,1762791041703,-300.0,0.00021732,2]
[393546506,1762791041713,-300.0,0.00021733,2]
[393546507,1762791041723,-300.0,0.00021733,2]
[393546508,1762791041733,-300.0,0.00021736,2]
[393546509,1762791041744,-300.0,0.00021738,2]
[393546510,1762791041756,-300.0,0.00021741,2]
[393546511,1762791041765,-194.53069937,0.00021741,2]
[393546512,1762791041775,-2351.0,0.00021741,2]
[393546513,1762791041784,-300.0,0.00021743,2]
[393546514,1762791041794,-8270.53,0.00021743,2]
[393546515,1762791041803,-300.0,0.00021746,2]
[393546516,1762791041813,-300.0,0.00021748,2]
[393546517,1762791041823,-300.0,0.00021748,2]
[393546518,1762791041832,-300.0,0.00021751,2]
[393546519,1762791041842,-300.0,0.00021753,2]
[393546520,1762791041851,-300.0,0.00021753,2]
[393546521,1762791041862,-300.0,0.00021755,2]
[393546522,1762791041872,-300.0,0.0002176,2]
[393546523,1762791041881,-300.0,0.00021764,2]
[393546524,1762791041891,-2492.0,0.00021766,2]
[393546525,1762791041901,-300.0,0.00021768,2]
[393546526,1762791041910,-300.0,0.00021768,2]
[393546527,1762791041920,-300.0,0.00021769,2]
[393546528,1762791041929,-300.0,0.0002177,2]
[393546529,1762791041941,-300.0,0.00021771,2]
[393546530,1762791041951,-300.0,0.00021773,2]
[393546531,1762791041960,-300.0,0.00021774,2]
[393546532,1762791041970,-300.0,0.00021775,2]
[393546533,1762791041980,-429.44602754,0.00021775,2]
[393546534,1762791041989,-300.0,0.00021776,2]
[393546535,1762791041999,-300.0,0.0002178,2]
[393546536,1762791042009,-300.0,0.00021782,2]
[393546537,1762791042018,-300.0,0.00021783,2]
[393546538,1762791042029,-300.0,0.00021785,2]
[393546539,1762791042039,-300.0,0.00021786,2]
[393546540,1762791042051,-300.0,0.00021787,2]
[393546541,1762791042061,-300.0,0.00021789,2]
[393546542,1762791042071,-300.0,0.0002179,2]
[393546543,1762791042081,-300.0,0.00021797,2]
[393546544,1762791042091,-300.0,0.00021799,2]
[393546545,1762791042101,-300.0,0.00021799,2]
[393546546,1762791042111,-300.0,0.00021801,2]
[393546547,1762791042121,-300.0,0.00021802,2]
[393546548,1762791042131,-300.0,0.00021802,2]
[393546549,1762791042141,-300.0,0.00021811,2]
[393546550,1762791042151,-300.0,0.00021812,2]
[393546551,1762791042160,-300.0,0.00021812,2]
[393546552,1762791042170,-300.0,0.00021814,2]
[393546553,1762791042181,-300.0,0.00021814,2]
[393546554,1762791042192,-300.0,0.00021821,2]
[393546555,1762791042203,-300.0,0.00021822,2]
[393546556,1762791042212,-300.0,0.00021825,2]
[393546557,1762791042223,-300.0,0.00021826,2]
[393546558,1762791042233,-300.0,0.00021833,2]
[393546559,1762791042243,-300.0,0.00021835,2]
[393546560,1762791042253,-300.0,0.00021837,2]
[393546561,1762791042263,-300.0,0.00021847,2]
[393546562,1762791042274,-300.0,0.00021847,2]
[393546563,1762791042283,-300.0,0.00021864,2]
[393546564,1762791042293,-300.0,0.00021866,2]
[393546565,1762791042303,-300.0,0.00021868,2]
[393546566,1762791042313,-300.0,0.00021872,2]
[393546567,1762791042323,-300.0,0.00021873,2]
[393546568,1762791042333,-300.0,0.00021873,2]
[393546569,1762791042344,-300.0,0.00021873,2]
[393546570,1762791042353,-300.0,0.00021876,2]
[393546571,1762791042363,-300.0,0.00021884,2]
[393546572,1762791042373,-300.0,0.0002189,2]
[393546573,1762791042382,-300.0,0.00021892,2]
[393546574,1762791042392,-300.0,0.00021893,2]
[393546575,1762791042401,-300.0,0.00021896,2]
[393546576,1762791042411,-300.0,0.00021903,2]
[393546577,1762791042421,-300.0,0.00021908,2]
[393546578,1762791042430,-300.0,0.0002191,2]
[393546579,1762791042446,-300.0,0.00021912,2]
[393546580,1762791042455,-5000.0,0.00021918,2]
[393546581,1762791042465,-181.08010149,0.00021918,2]
[393546582,1762791042475,-300.0,0.00021919,2]
[393546583,1762791042484,-300.0,0.00021936,2]
[393546584,1762791042493,-300.0,0.00021936,2]
[393546585,1762791042502,-300.0,0.00021941,2]
[393546586,1762791042515,-300.0,0.00021942,2]
[393546587,1762791042524,-300.0,0.00021952,2]
[393546588,1762791042534,-300.0,0.00021953,2]
[393546589,1762791042543,-300.0,0.00021954,2]
[393546590,1762791042554,-300.0,0.00021957,2]
[393546591,1762791042563,-300.0,0.00021961,2]
[393546592,1762791042573,-300.0,0.00021962,2]
[393546593,1762791042582,-300.0,0.00021969,2]
[393546594,1762791042592,-300.0,0.0002197,2]
[393546595,1762791042602,-300.0,0.00021974,2]
[393546596,1762791042612,-300.0,0.00021981,2]
[393546597,1762791042622,-300.0,0.00021981,2]
[393546598,1762791042632,-300.0,0.00021986,2]
[393546600,1762791042641,-300.0,0.00021987,2]
[393546602,1762791042652,-300.0,0.0002199,2]
[393546603,1762791042661,-300.0,0.00021992,2]
[393546604,1762791042751,-300.0,0.00021997,2]
[393546605,1762791042770,-629.24326679,0.00021999,2]
[393546606,1762791042780,-666.0,0.00021999,2]
[393546608,1762791042789,-666.0,0.00021999,2]
[393546610,1762791042798,-199040.36627003,0.00022,4]
[393546612,1762791042808,-4109.01751606,0.00022,2]
[393546614,1762791042818,-788.39661554,0.00022,7]
[393546617,1762791042827,-160.97,0.00022,2]
[393546620,1762791042837,-153.05192256,0.00022,2]
[393546622,1762791042848,-1000.0,0.00022088,2]
[393546623,1762791042863,-489.96733599,0.000221,2]
[393546624,1762791042873,-1000.0,0.000221,2]
[393546625,1762791042882,-238.07965865,0.0002211,2]
[393546626,1762791042892,-1000.0,0.00022112,2]
[393546627,1762791042901,-200.0,0.00022172,2]
[393546628,1762791042909,-200.0,0.00022172,2]
[393546629,1762791042917,-300.0,0.00022264,2]
[393546630,1762791042925,-2000.0,0.000223,2]
[393546631,1762791042935,-187.78006525,0.00022466,2]
[393546633,1762791042944,-190.37,0.00022593,2]
[393546635,1762791042954,-12265.3379374,0.00022658,2]
[393546637,1762791042963,-200.0,0.0002272,2]
[393546638,1762791042973,-200.0,0.0002272,2]
[393546640,1762791042983,-3.76443051,0.00022738,2]
[393546646,1762791043029,-212.83556949,0.00022738,2]
[393546647,1762791043039,-300.0,0.00022797,2]
[393546648,1762791043050,-1000.0,0.00022833,2]
[393546649,1762791043060,-1000.0,0.00022841,7]
[393546650,1762791043071,-194.72792766,0.00023014,2]
[393546651,1762791043080,-29974.2451048,0.00023172,2]
[393546652,1762791043090,-200.0,0.00023268,2]
[393546653,1762791043099,-200.0,0.00023268,2]
[393546654,1762791043108,-189.50771373,0.00023403,2]
[393546655,1762791043117,-426.86779303,0.00023403,2]
[393546656,1762791043127,-199.70310669,0.00023403,2]
[393546657,1762791043136,-298.02956102,0.00023403,2]
[393546658,1762791043146,-151.0,0.00023403,2]
[393546659,1762791043156,-250.0,0.00023403,2]
[393546660,1762791043165,-151.0,0.00023403,2]
[393546661,1762791043175,-151.0,0.00023403,2]
[393546662,1762791043186,-250.0,0.00023403,2]
[393546663,1762791043195,-151.0,0.00023403,2]
[393546664,1762791043205,-151.0,0.00023403,2]
[393546665,1762791043217,-250.0,0.00023403,2]
[393546666,1762791043227,-151.0,0.00023403,2]
[393546667,1762791043237,-250.0,0.00023403,2]
[393546668,1762791043246,-151.0,0.00023403,2]
[393546669,1762791043256,-250.0,0.00023403,2]
[393546670,1762791043265,-574.12855637,0.00023403,2]
[393546671,1762791043275,-151.0,0.00023403,2]
[393546672,1762791043285,-250.0,0.00023403,2]
[393546673,1762791043294,-151.0,0.00023403,2]
[393546674,1762791043304,-250.0,0.00023403,2]
[393546675,1762791043313,-151.0,0.00023403,2]
[393546676,1762791043323,-151.0,0.00023403,2]
[393546677,1762791043332,-250.0,0.00023403,2]
[393546678,1762791043343,-151.0,0.00023403,2]
[393546679,1762791043352,-250.0,0.00023403,2]
[393546680,1762791043363,-250.0,0.00023403,2]
[393546681,1762791043373,-151.0,0.00023403,2]
[393546682,1762791043382,-250.0,0.00023403,2]
[393546683,1762791043392,-250.0,0.00023403,2]
[393546684,1762791043401,-250.0,0.00023403,2]
[393546685,1762791043411,-250.0,0.00023403,2]
[393546686,1762791043423,-250.0,0.00023403,2]
[393546687,1762791043435,-250.0,0.00023403,2]
[393546688,1762791043447,-250.0,0.00023403,2]
[393546689,1762791043456,-250.0,0.00023403,2]
[393546690,1762791043466,-250.0,0.00023403,2]
[393546691,1762791043475,-250.0,0.00023403,2]
[393546692,1762791043486,-250.0,0.00023403,2]
[393546693,1762791043496,-175.52102581,0.00023403,2]
[393546694,1762791043505,-250.0,0.00023403,2]
[393546695,1762791043515,-250.0,0.00023403,2]
[393546696,1762791043525,-250.0,0.00023403,2]
[393546697,1762791043535,-250.0,0.00023403,2]
[393546698,1762791043544,-250.0,0.00023403,2]
[393546699,1762791043554,-250.0,0.00023403,2]
[393546700,1762791043563,-250.0,0.00023403,2]
[393546701,1762791043573,-250.0,0.00023403,2]
[393546702,1762791043583,-250.0,0.00023403,2]
[393546703,1762791043592,-250.0,0.00023403,2]
[393546704,1762791043601,-250.0,0.00023403,2]
[393546705,1762791043611,-151.0,0.00023403,2]
[393546706,1762791043621,-151.0,0.00023403,2]
[393546707,1762791043631,-250.0,0.00023403,2]
[393546708,1762791043641,-151.0,0.00023403,2]
[393546709,1762791043650,-346.92554585,0.00023403,2]
[393546710,1762791043659,-151.0,0.00023403,2]
[393546711,1762791043669,-151.0,0.00023403,2]
[393546712,1762791043679,-151.0,0.00023403,2]
[393546713,1762791043691,-250.0,0.00023403,2]
[393546714,1762791043701,-151.0,0.00023403,2]
[393546715,1762791043710,-250.0,0.00023403,2]
[393546716,1762791043719,-151.0,0.00023403,2]
[393546717,1762791043729,-151.0,0.00023403,2]
[393546718,1762791043740,-250.0,0.00023403,2]
[393546719,1762791043752,-151.0,0.00023403,2]
[393546720,1762791043762,-250.0,0.00023403,2]
[393546721,1762791043771,-250.0,0.00023403,2]
[393546722,1762791043781,-151.0,0.00023403,2]
[393546724,1762791043791,-250.0,0.00023403,2]
[393546726,1762791043801,-151.0,0.00023403,2]
[393546728,1762791043810,-277.35679052,0.00023403,2]
[393546730,1762791043819,-151.0,0.00023403,2]
[393546731,1762791043829,-250.0,0.00023403,2]
[393546732,1762791043839,-151.0,0.00023403,2]
[393546733,1762791043848,-250.0,0.00023403,2]
[393546734,1762791043858,-151.0,0.00023403,2]
[393546735,1762791043868,-250.0,0.00023403,2]